bitfinex-derivatives/quotes_BTCF0:USTF0_20241122
["timestamp","ask_amount","ask_price","bid_price","bid_amount"]
[1732304306651,0.66249978,99247.0,99246.0,0.15200968]
[1732304306854,1.06609978,99247.0,99246.0,0.15200968]
[1732304307050,1.06609978,99247.0,99231.0,0.3608]
[1732304307255,0.76381978,99247.0,99237.0,0.15048838]
[1732304307559,0.76381978,99247.0,99246.0,0.15048838]
[1732304307745,0.76381978,99247.0,99238.0,0.15048838]
[1732304307948,0.76381978,99247.0,99246.0,0.15048838]
[1732304308448,1.06609978,99247.0,99240.0,0.15050125]
[1732304308648,0.76381978,99247.0,99246.0,0.15050125]
[1732304308849,0.76381978,99247.0,99238.0,0.15050125]
[1732304309051,0.6608,99247.0,99246.0,0.14881036]
[1732304309246,0.3608,99247.0,99246.0,0.14881036]
[1732304309551,0.3608,99247.0,99231.0,0.3608]
[1732304309552,0.3608,99247.0,99239.0,0.15051014]
[1732304309752,0.3608,99247.0,99246.0,0.15051014]
[1732304309952,0.3608,99247.0,99246.0,5.095e-05]
[1732304310145,0.76216,99247.0,99240.0,0.15051014]
[1732304310344,0.76216,99247.0,99246.0,0.15209963]
[1732304310548,0.76216,99247.0,99235.0,0.00151135]
[1732304310549,0.82296,99247.0,99242.0,0.15209963]
[1732304310754,0.82296,99247.0,99241.0,0.15209963]
[1732304310955,1.42524,99247.0,99246.0,0.15209963]
[1732304311256,1.42524,99247.0,99243.0,0.15099444]
[1732304311257,1.12296,99247.0,99243.0,0.15099444]
[1732304311555,1.12296,99247.0,99244.0,0.15099444]
[1732304311556,0.30228,99246.0,99244.0,0.15099444]
[1732304311950,0.30228,99245.0,99243.0,0.15099444]
[1732304312145,0.3608,99238.0,99211.0,0.30268001]
[1732304312352,0.7216,99212.0,99204.0,0.003]
[1732304312547,0.7216,99212.0,99204.0,0.30568001]
[1732304312749,0.7216,99212.0,99205.0,0.15076111]
[1732304313052,0.7216,99212.0,99182.0,0.15147882]
[1732304313249,0.3608,99212.0,99203.0,0.30268001]
[1732304313450,0.3608,99204.0,99203.0,0.30268001]
[1732304313648,0.7216,99204.0,99181.0,0.00451211]
[1732304313857,0.7216,99182.0,99181.0,0.00451211]
[1732304314152,0.7216,99182.0,99181.0,0.15493936]
[1732304314948,1.02408,99182.0,99181.0,0.15493936]
[1732304315149,0.7216,99182.0,99181.0,0.15493936]
[1732304315853,0.7216,99182.0,99181.0,0.15501799]
[1732304316246,0.4523,99182.0,99181.0,0.15493936]
[1732304316448,0.00151266,99202.0,99181.0,0.45741936]
[1732304316648,0.00151266,99202.0,99188.0,0.3608]
[1732304316857,0.3608,99215.0,99198.0,0.3608]
[1732304317047,0.3608,99234.0,99207.0,0.7216]
[1732304317244,0.10144,99233.0,99219.0,0.3608]
[1732304317664,0.3608,99234.0,99220.0,0.29698384]
[1732304317846,0.3608,99255.0,99228.0,0.3608]
[1732304318050,0.3608,99255.0,99220.0,0.15162161]
[1732304318051,0.3608,99244.0,99220.0,0.15162161]
[1732304318248,0.3608,99244.0,99229.0,0.15200542]
[1732304318562,0.46224,99244.0,99222.0,0.15200542]
[1732304318747,0.46224,99244.0,99230.0,0.15200542]
[1732304318951,0.3608,99244.0,99230.0,0.15200542]
[1732304319147,0.46224,99244.0,99223.0,0.15131184]
[1732304319357,0.46224,99244.0,99231.0,0.15131184]
[1732304319555,0.3608,99244.0,99227.0,0.3608]
[1732304319859,0.3608,99244.0,99224.0,0.1723]
[1732304319860,0.46224,99244.0,99232.0,0.15131184]
[1732304320157,0.46224,99244.0,99225.0,0.15152795]
[1732304320558,0.46224,99244.0,99233.0,0.15152795]
[1732304320755,0.46224,99244.0,99228.0,0.02009357]
[1732304320956,0.3608,99244.0,99226.0,0.15152795]
[1732304321157,0.3608,99244.0,99234.0,0.15177569]
[1732304321456,0.3608,99255.0,99228.0,0.3608]
[1732304321652,0.10144,99254.0,99239.0,0.3608]
[1732304321857,0.10144,99253.0,99239.0,0.3608]
[1732304322158,0.10144,99255.0,99240.0,0.15069028]
[1732304322360,0.10144,99254.0,99240.0,0.15069028]
[1732304322556,0.10144,99254.0,99234.0,0.15069028]
[1732304322756,0.3608,99258.0,99239.0,0.3608]
[1732304323057,0.10144,99257.0,99235.0,0.15187183]
[1732304323354,0.10144,99257.0,99236.0,0.3608]
[1732304323568,0.10144,99257.0,99240.0,0.15187183]
[1732304323758,0.10144,99257.0,99236.0,0.51267183]
[1732304324059,0.10144,99257.0,99241.0,0.15187183]
[1732304324461,0.10144,99257.0,99238.0,0.15181001]
[1732304324654,0.10144,99257.0,99242.0,0.15181001]
[1732304325159,0.10144,99257.0,99239.0,0.15074473]
[1732304325356,0.10144,99257.0,99243.0,0.15074473]
[1732304325660,0.10144,99257.0,99240.0,0.15074473]
[1732304325851,0.10144,99257.0,99244.0,0.15074473]
[1732304326050,0.00151164,99264.0,99245.0,7.863e-05]
[1732304326359,0.00151164,99264.0,99252.0,0.3608]
[1732304326659,0.00151164,99264.0,99244.0,0.33137962]
[1732304326660,0.3608,99259.0,99253.0,0.15102472]
[1732304326860,0.3608,99259.0,99253.0,0.04055348]
[1732304327161,0.3608,99259.0,99251.0,0.15102472]
[1732304327361,0.3608,99259.0,99254.0,0.15053106]
[1732304327558,0.00151164,99264.0,99254.0,0.15053106]
[1732304327858,0.00151164,99264.0,99248.0,0.15053106]
[1732304328060,0.00151164,99264.0,99255.0,0.15053106]
[1732304328250,0.00151164,99264.0,99255.0,0.3608]
[1732304328456,0.00151164,99264.0,99263.0,0.3608]
[1732304328664,0.10356,99279.0,99263.0,0.3608]
[1732304328858,0.10356,99279.0,99263.0,0.5123935]
[1732304329060,0.45009387,99295.0,99265.0,0.3608]
[1732304329061,0.10356,99291.0,99265.0,0.3608]
[1732304329260,0.08929387,99291.0,99265.0,0.3608]
[1732304329463,0.10356,99292.0,99282.0,0.3608]
[1732304329765,0.1,99300.0,99290.0,0.3608]
[1732304329963,0.1,99300.0,99283.0,0.15019958]
[1732304330152,0.1,99300.0,99291.0,0.15011545]
[1732304330464,0.1,99300.0,99299.0,0.3608]
[1732304330675,0.1,99300.0,99292.0,0.15011545]
[1732304330858,0.1,99300.0,99299.0,0.3608]
[1732304331055,0.1,99300.0,99299.0,0.51091545]
[1732304331367,0.18929387,99300.0,99299.0,0.3608]
[1732304331557,0.1,99300.0,99299.0,0.51262457]
[1732304332565,0.1,99300.0,99299.0,0.15182457]
[1732304332865,0.1,99300.0,99292.0,0.1515612]
[1732304333057,0.08929387,99297.0,99292.0,0.1515612]
[1732304333263,0.1,99300.0,99295.0,0.3608]
[1732304333662,0.1,99300.0,99296.0,0.1506001]
[1732304334166,0.21886478,99300.0,99296.0,0.1506001]
[1732304334356,0.1,99300.0,99296.0,0.1506001]
[1732304334955,0.08948725,99299.0,99295.0,0.30061769]
[1732304335157,0.22786478,99299.0,99295.0,0.30061769]
[1732304335361,0.109,99299.0,99297.0,0.15017072]
[1732304335556,0.109,99299.0,99296.0,0.15017072]
[1732304335751,0.109,99299.0,99298.0,0.15017072]
[1732304336262,0.109,99299.0,99275.0,0.04041587]
[1732304336263,0.71112,99299.0,99275.0,0.04041587]
[1732304336460,0.3608,99281.0,99262.0,0.02006745]
[1732304336657,0.109,99280.0,99263.0,0.4019383]
[1732304336859,0.41116,99280.0,99263.0,0.3608]
[1732304337166,0.41116,99280.0,99279.0,0.15311714]
[1732304337558,0.71116,99280.0,99232.0,0.3608]
[1732304337759,0.14536223,99253.0,99236.0,0.003]
[1732304337963,0.14536223,99253.0,99244.0,0.15136732]
[1732304338866,0.109,99254.0,99244.0,0.15136732]
[1732304340460,0.3608,99259.0,99244.0,0.15136732]
[1732304340667,0.109,99253.0,99244.0,0.15136732]
[1732304341960,0.3608,99250.0,99244.0,0.15136732]
[1732304342156,0.66308,99250.0,99244.0,0.15136732]
[1732304342563,0.75251392,99250.0,99244.0,0.15136732]
[1732304342965,0.08943392,99249.0,99244.0,0.15136732]
[1732304343366,0.08943392,99248.0,99244.0,0.15136732]
[1732304343578,0.39171392,99249.0,99244.0,0.15136732]
[1732304343768,0.45023392,99250.0,99244.0,0.15136732]
[1732304344068,0.3608,99250.0,99244.0,0.15136732]
[1732304344369,0.08943392,99257.0,99244.0,0.15136732]
[1732304344572,0.45023392,99258.0,99244.0,0.15136732]
[1732304344767,0.08943392,99264.0,99255.0,0.3608]
[1732304345077,0.08943392,99263.0,99256.0,0.15110407]
[1732304345375,0.08943392,99265.0,99256.0,0.15110407]
[1732304345575,0.08943392,99264.0,99263.0,0.3608]
[1732304345765,0.08943392,99269.0,99263.0,0.3608]
[1732304345962,0.08943392,99269.0,99264.0,0.15110407]
[1732304346161,0.08943392,99270.0,99263.0,0.51246407]
[1732304346375,0.11886478,99271.0,99265.0,0.3608]
[1732304346574,0.08965778,99277.0,99266.0,0.1666]
[1732304346875,0.08965778,99277.0,99267.0,0.1507764]
[1732304347072,0.08965778,99279.0,99267.0,0.1507764]
[1732304347263,0.08965778,99280.0,99267.0,0.1507764]
[1732304347573,0.3608,99288.0,99267.0,0.1507764]
[1732304347574,0.08965778,99277.0,99267.0,0.1507764]
[1732304347770,0.3608,99288.0,99267.0,0.1507764]
[1732304347771,0.08965778,99276.0,99271.0,0.3608]
[1732304347971,0.08965778,99278.0,99267.0,0.1507764]
[1732304348173,0.08965778,99275.0,99272.0,0.15139267]
[1732304348372,0.08965778,99275.0,99268.0,0.51219267]
[1732304348769,0.08965778,99275.0,99273.0,0.15139267]
[1732304349081,0.08965778,99278.0,99269.0,0.15139267]
[1732304349381,0.08965778,99276.0,99274.0,0.15053532]
[1732304349677,0.11886478,99281.0,99269.0,0.15053532]
[1732304349868,0.11886478,99281.0,99275.0,0.15053532]
[1732304350069,0.109,99288.0,99268.0,0.3608]
[1732304350070,0.08969961,99279.0,99274.0,0.15053532]
[1732304350265,0.109,99288.0,99269.0,0.15195828]
[1732304350266,0.08969961,99277.0,99269.0,0.15195828]
[1732304350465,0.08969961,99277.0,99268.0,0.3608]
[1732304350466,0.11886478,99282.0,99276.0,0.15195828]
[1732304350770,0.11886478,99280.0,99269.0,0.15195828]
[1732304350974,0.08972382,99274.0,99269.0,0.15195828]
[1732304351172,0.08972382,99274.0,99268.0,0.3608]
[1732304351372,0.08972382,99283.0,99273.0,0.02007217]
[1732304351571,0.08972382,99286.0,99273.0,0.02007217]
[1732304351877,0.1,99300.0,99273.0,0.02007217]
[1732304351878,0.08972382,99290.0,99276.0,0.3608]
[1732304352179,0.08972382,99294.0,99279.0,0.03594656]
[1732304352372,0.1,99300.0,99279.0,0.03594656]
[1732304352573,0.1,99300.0,99280.0,0.15157709]
[1732304352974,0.18972382,99300.0,99280.0,0.15157709]
[1732304353174,0.08972382,99298.0,99280.0,0.15157709]
[1732304353379,0.1,99300.0,99280.0,0.15157709]
[1732304353681,0.1,99300.0,99299.0,0.3608]
[1732304353875,0.1,99300.0,99286.0,0.3608]
[1732304354077,0.1,99300.0,99299.0,0.15137624]
[1732304354280,0.1,99300.0,99294.0,0.3608]
[1732304354579,0.1,99300.0,99299.0,0.15200494]
[1732304354971,0.1,99300.0,99296.0,0.15200494]
[1732304355281,0.1,99300.0,99299.0,0.15006895]
[1732304355575,0.1,99300.0,99294.0,0.3608]
[1732304355972,0.1,99300.0,99296.0,0.15006895]
[1732304356174,0.1,99300.0,99295.0,0.15006895]
[1732304356377,0.1,99300.0,99294.0,0.40168513]
[1732304356568,0.1,99300.0,99295.0,0.15093825]
[1732304358876,0.1,99300.0,99297.0,0.03594656]
[1732304359180,0.3608,99298.0,99297.0,0.03594656]
[1732304359580,0.66292,99298.0,99261.0,0.11468]
[1732304359883,0.3608,99282.0,99278.0,0.15112817]
[1732304360786,0.3608,99279.0,99278.0,0.15112817]
[1732304360971,0.3608,99279.0,99244.0,0.1805]
[1732304361281,0.3608,99279.0,99250.0,0.15028266]
[1732304361282,0.3608,99263.0,99250.0,0.15028266]
[1732304361580,0.3608,99254.0,99245.0,0.15028266]
[1732304361883,0.3608,99254.0,99244.0,0.1805]
[1732304362078,0.3608,99254.0,99243.0,0.04136147]
[1732304362279,0.3608,99254.0,99246.0,0.150933]
[1732304362484,0.3608,99254.0,99244.0,0.150933]
[1732304362681,0.3608,99254.0,99243.0,0.00151148]
[1732304362984,0.3608,99254.0,99247.0,0.150933]
[1732304363176,0.3608,99254.0,99245.0,0.150933]
[1732304363376,0.3608,99246.0,99243.0,0.00151148]
[1732304363885,0.66308,99246.0,99245.0,0.1506278]
[1732304364084,0.3608,99246.0,99244.0,0.1506278]
[1732304364290,0.30228,99245.0,99243.0,0.00151148]
[1732304364582,0.3608,99246.0,99245.0,0.15175417]
[1732304364883,0.3608,99246.0,99243.0,0.00151148]
[1732304365085,0.3608,99246.0,99245.0,0.15175417]
[1732304365288,0.3608,99246.0,99244.0,0.15071151]
[1732304365586,0.3608,99246.0,99245.0,0.15071151]
[1732304365886,0.3608,99246.0,99244.0,0.15071151]
[1732304366380,0.3608,99246.0,99245.0,0.1503932]
[1732304366585,0.3608,99246.0,99243.0,0.00151148]
[1732304366787,0.3608,99246.0,99244.0,0.1503932]
[1732304367079,0.3608,99246.0,99243.0,0.00151148]
[1732304367488,0.30228,99245.0,99231.0,0.00056]
[1732304367681,0.3608,99232.0,99189.0,0.3756]
[1732304367886,0.3608,99207.0,99189.0,0.3756]
[1732304368585,0.3608,99197.0,99190.0,0.15032022]
[1732304368973,0.3608,99197.0,99188.0,0.15032022]
[1732304369188,0.3608,99197.0,99191.0,0.15152457]
[1732304369373,0.7216,99197.0,99191.0,0.15152457]
[1732304369578,0.7216,99197.0,99176.0,0.04041944]
[1732304369579,0.30244,99196.0,99189.0,0.15152457]
[1732304369887,1.0216,99197.0,99169.0,0.02160068]
[1732304369888,0.7216,99197.0,99192.0,0.15152457]
[1732304370182,0.7216,99197.0,99190.0,0.15152457]
[1732304370492,0.7216,99197.0,99193.0,0.15097614]
[1732304370493,0.11472,99196.0,99193.0,0.15097614]
[1732304370675,0.11472,99196.0,99191.0,0.15097614]
[1732304370984,0.11472,99196.0,99188.0,0.15097614]
[1732304371181,0.3608,99189.0,99187.0,0.15097614]
[1732304371484,0.3608,99189.0,99171.0,0.1516098]
[1732304371784,0.3608,99172.0,99169.0,0.02160068]
[1732304372188,0.3608,99172.0,99171.0,0.1516098]
[1732304372383,0.3608,99172.0,99170.0,0.1516098]
[1732304372680,0.3608,99172.0,99171.0,0.1503947]
[1732304373187,0.3608,99172.0,99169.0,0.02160068]
[1732304373487,0.3608,99172.0,99170.0,0.15056399]
[1732304374090,0.47556,99171.0,99170.0,0.15056399]
[1732304374590,0.77808,99171.0,99170.0,0.15056399]
[1732304374786,1.26078,99171.0,99120.0,0.00151339]
[1732304375083,0.3608,99123.0,99120.0,0.15207147]
[1732304375290,0.22485308,99130.0,99120.0,0.15207147]
[1732304375583,0.3608,99147.0,99120.0,0.00151339]
[1732304375891,0.3608,99138.0,99122.0,0.3608]
[1732304376184,0.3608,99147.0,99130.0,0.3608]
[1732304376574,0.3608,99147.0,99131.0,0.33730633]
[1732304376978,0.3608,99162.0,99131.0,0.33730633]
[1732304377181,0.3608,99162.0,99148.0,0.3608]
[1732304377387,0.3608,99162.0,99137.0,0.3608]
[1732304377687,0.12084,99161.0,99149.0,0.15057539]
[1732304377883,0.00151342,99165.0,99145.0,0.3608]
[1732304378196,0.00151342,99165.0,99150.0,0.15057539]
[1732304378385,0.00151342,99165.0,99151.0,0.1753]
[1732304378690,0.3608,99173.0,99152.0,0.1874]
[1732304378886,0.22485308,99170.0,99152.0,0.1874]
[1732304379075,0.22485308,99170.0,99153.0,0.1510734]
[1732304379680,0.3608,99164.0,99153.0,0.1510734]
[1732304380982,0.3608,99173.0,99153.0,0.1510734]
[1732304381482,0.3608,99173.0,99159.0,0.02010267]
[1732304381878,0.3608,99173.0,99160.0,0.1513992]
[1732304382382,0.3608,99173.0,99161.0,0.3642]
[1732304382780,0.3608,99173.0,99162.0,0.15040602]
[1732304383787,0.3608,99163.0,99162.0,0.15040602]
[1732304384184,0.3608,99163.0,99162.0,0.45292602]
[1732304386881,0.3608,99163.0,99162.0,0.49394664]
[1732304387788,0.3608,99163.0,99162.0,0.19142664]
[1732304388888,0.3608,99163.0,99162.0,0.15040602]
[1732304389386,0.66332,99163.0,99152.0,0.15039291]
[1732304389588,0.3608,99153.0,99131.0,0.38672]
[1732304389782,0.3608,99153.0,99131.0,0.3862]
[1732304389982,0.3608,99153.0,99152.0,0.15039291]
[1732304390388,0.3608,99153.0,99131.0,0.00052]
[1732304390594,0.7216,99132.0,99122.0,0.00054]
[1732304390788,0.3608,99123.0,99122.0,0.00054]
[1732304390987,0.3608,99123.0,99122.0,0.04094186]
[1732304391279,0.3608,99123.0,99122.0,0.15270643]
[1732304394698,0.3608,99123.0,99122.0,0.05221468]
[1732304395084,0.3608,99123.0,99122.0,0.00181468]
[1732304399395,0.3608,99123.0,99091.0,0.241816]
[1732304399396,0.31948086,99115.0,99091.0,0.1914]
[1732304399597,0.31948086,99115.0,99106.0,0.050408]
[1732304399799,0.31948086,99115.0,99113.0,0.15112664]
[1732304399987,0.31948086,99115.0,99112.0,0.15112664]
[1732304400188,0.31948086,99115.0,99103.0,0.22855551]
[1732304400395,0.31948086,99115.0,99114.0,0.15214511]
[1732304400594,0.31948086,99115.0,99113.0,0.15214511]
[1732304400798,0.31948086,99115.0,99107.0,0.050408]
[1732304401101,0.31948086,99115.0,99114.0,0.15214511]
[1732304401292,0.31948086,99115.0,99112.0,0.15214511]
[1732304401492,0.31948086,99115.0,99103.0,0.22855551]
[1732304401493,0.31948086,99115.0,99114.0,0.15181306]
[1732304401903,0.26289371,99115.0,99113.0,0.15181306]
[1732304402099,0.26289371,99115.0,99114.0,0.15181306]
[1732304402293,0.26289371,99115.0,99103.0,0.04045551]
[1732304402294,0.26289371,99115.0,99104.0,0.15181306]
[1732304402493,0.3608,99105.0,99104.0,0.05041]
[1732304402692,0.3608,99105.0,99104.0,0.02011511]
[1732304402994,0.3608,99105.0,99104.0,0.17176335]
[1732304403196,0.3608,99105.0,99104.0,0.15164824]
[1732304403502,0.66352,99105.0,99101.0,0.15130878]
[1732304403700,0.3608,99102.0,99101.0,0.15130878]
[1732304403901,0.66352,99102.0,99100.0,0.1]
[1732304404119,0.30272,99101.0,99100.0,0.1]
[1732304404295,0.2608,99094.0,99086.0,0.0399285]
[1732304404608,0.3608,99087.0,99080.0,0.050422]
[1732304404803,0.3608,99081.0,99076.0,0.050424]
[1732304405113,0.3608,99081.0,99077.0,0.15157688]
[1732304405495,0.3608,99081.0,99064.0,0.15123608]
[1732304405700,0.7216,99065.0,99064.0,0.15123608]
[1732304405905,0.7165,99065.0,99050.0,0.00492281]
[1732304406092,0.3608,99057.0,99056.0,0.05194834]
[1732304406499,0.3608,99057.0,99056.0,0.20201584]
[1732304406801,0.3608,99057.0,99056.0,0.15158184]
[1732304407108,0.3608,99057.0,99046.0,0.191]
[1732304407295,0.3608,99057.0,99054.0,0.15158184]
[1732304407502,0.3608,99055.0,99047.0,0.050438]
[1732304407701,0.3608,99055.0,99048.0,0.050438]
[1732304407899,0.3608,99055.0,99048.0,0.2018904]
[1732304408098,0.3608,99055.0,99047.0,0.1514524]
[1732304408305,0.3608,99055.0,99054.0,0.02011774]
[1732304408802,0.14608239,99080.0,99054.0,0.02011774]
[1732304408803,0.35584527,99067.0,99065.0,0.050429]
[1732304409009,0.3608,99082.0,99065.0,0.30504603]
[1732304409202,0.3558,99082.0,99080.0,0.050421]
[1732304409402,0.3558,99082.0,99080.0,0.05543434]
[1732304409603,0.08972382,99117.0,99084.0,0.050419]
[1732304409900,0.3608,99134.0,99116.0,0.3608]
[1732304410102,0.1334,99141.0,99116.0,0.3608]
[1732304410306,0.3608,99139.0,99117.0,0.15100147]
[1732304410606,0.3608,99139.0,99114.0,0.15116262]
[1732304410802,0.3608,99139.0,99115.0,0.050404]
[1732304411121,0.1334,99138.0,99118.0,0.15116262]
[1732304411299,0.1334,99138.0,99116.0,0.1512178]
[1732304411300,0.1334,99138.0,99119.0,5.518e-05]
[1732304411496,0.3608,99139.0,99120.0,0.14608239]
[1732304411807,0.3608,99139.0,99129.0,0.3608]
[1732304412209,0.3608,99139.0,99130.0,0.15202136]
[1732304412509,0.3608,99139.0,99126.0,0.15088537]
[1732304412699,0.3608,99139.0,99127.0,0.3608]
[1732304412906,0.3608,99139.0,99131.0,0.15088537]
[1732304413207,0.3608,99139.0,99128.0,0.15088537]
[1732304413408,0.3608,99139.0,99132.0,0.15183311]
[1732304413813,0.3608,99139.0,99129.0,0.15183311]
[1732304414015,0.3608,99130.0,99128.0,0.15183311]
[1732304414311,0.3608,99130.0,99124.0,0.02010989]
[1732304414500,0.3608,99125.0,99121.0,0.15047266]
[1732304414700,0.13948,99124.0,99102.0,0.05041]
[1732304414909,0.3608,99114.0,99102.0,0.15047266]
[1732304415107,0.3608,99114.0,99096.0,0.15047266]
[1732304415305,0.3608,99114.0,99107.0,0.02010989]
[1732304415705,0.3608,99114.0,99112.0,0.050405]
[1732304415905,0.50028,99125.0,99108.0,0.1516411]
[1732304415906,0.50028,99125.0,99123.0,0.050399]
[1732304416112,0.3608,99125.0,99123.0,0.050399]
[1732304416315,0.3608,99125.0,99124.0,0.1516411]
[1732304417015,0.3608,99125.0,99119.0,0.15195814]
[1732304417215,0.3608,99125.0,99124.0,0.15195814]
[1732304417416,0.3608,99125.0,99124.0,0.00156438]
[1732304417607,0.3608,99125.0,99120.0,0.15218457]
[1732304417808,0.3608,99125.0,99121.0,5.518e-05]
[1732304418003,0.3608,99125.0,99095.0,0.3608]
[1732304418004,0.3608,99125.0,99122.0,5.518e-05]
[1732304418306,0.45122098,99124.0,99122.0,0.15207717]
[1732304418508,0.07761987,99123.0,99095.0,0.40137373]
[1732304418709,0.3608,99109.0,99102.0,0.05041]
[1732304418907,0.30421178,99109.0,99107.0,0.050407]
[1732304419306,0.11992835,99113.0,99108.0,0.150762]
[1732304419513,0.11992835,99111.0,99108.0,0.150762]
[1732304419710,0.11992835,99111.0,99104.0,0.15193656]
[1732304419911,0.11992835,99111.0,99109.0,0.20234356]
[1732304420110,0.12000858,99111.0,99109.0,0.15193656]
[1732304420309,0.14991044,99119.0,99095.0,0.40129728]
[1732304420310,0.12000858,99114.0,99103.0,0.3608]
[1732304420509,0.13948,99120.0,99110.0,0.15184872]
[1732304420715,0.13948,99120.0,99103.0,0.3608]
[1732304420716,0.12000858,99118.0,99114.0,0.050404]
[1732304420913,0.13948,99120.0,99096.0,0.050413]
[1732304420914,0.3608,99111.0,99096.0,0.050413]
[1732304421224,0.3608,99111.0,99105.0,0.15184872]
[1732304421225,0.12000858,99108.0,99105.0,0.15184872]
[1732304421521,0.3608,99106.0,99097.0,0.15165492]
[1732304421709,0.3608,99106.0,99095.0,0.15165492]
[1732304421710,0.3608,99098.0,99095.0,0.15165492]
[1732304421906,0.13948,99097.0,99079.0,0.02011787]
[1732304422114,0.4422,99097.0,99095.0,0.15165492]
[1732304422421,0.4422,99097.0,99064.0,0.00151383]
[1732304422422,0.49902,99096.0,99080.0,0.20147859]
[1732304422719,0.13948,99097.0,99073.0,0.02011787]
[1732304422920,0.13948,99097.0,99094.0,0.050414]
[1732304423217,0.3608,99098.0,99094.0,0.050414]
[1732304423421,0.3608,99098.0,99095.0,0.15210323]
[1732304423727,0.3608,99098.0,99093.0,0.050415]
[1732304423915,0.3608,99098.0,99094.0,5.518e-05]
[1732304424122,0.3608,99098.0,99094.0,0.15210323]
[1732304425119,0.3608,99098.0,99095.0,5.518e-05]
[1732304425318,0.3608,99098.0,99091.0,0.15067427]
[1732304425615,0.3608,99098.0,99096.0,0.15232159]
[1732304425820,0.3608,99098.0,99092.0,0.15232159]
[1732304426016,0.3608,99093.0,99080.0,0.15232159]
[1732304426321,0.3608,99081.0,99077.0,0.15085929]
[1732304426512,0.3608,99081.0,99079.0,0.050422]
[1732304426712,0.3608,99081.0,99080.0,0.15085929]
[1732304426919,0.3028,99080.0,99057.0,0.02011787]
[1732304427226,0.3608,99081.0,99069.0,0.050427]
[1732304427227,0.3608,99071.0,99069.0,0.050427]
[1732304427522,0.3608,99071.0,99070.0,0.050426]
[1732304427821,0.3608,99071.0,99070.0,0.15096382]
[1732304428015,0.3608,99071.0,99065.0,0.15096382]
[1732304428219,0.3608,99071.0,99070.0,0.15096382]
[1732304428413,0.3608,99071.0,99070.0,5.518e-05]
[1732304428619,0.29161184,99071.0,99067.0,0.15186316]
[1732304428831,0.29161184,99071.0,99070.0,0.15186316]
[1732304429123,0.29161184,99071.0,99068.0,0.15186316]
[1732304429124,0.2350037,99071.0,99068.0,0.15186316]
[1732304429419,0.2350037,99071.0,99070.0,0.15186316]
[1732304429619,0.2350037,99071.0,99070.0,5.518e-05]
[1732304429924,0.2350037,99071.0,99070.0,0.15146253]
[1732304430122,0.3608,99080.0,99070.0,0.15146253]
[1732304430421,0.3608,99080.0,99040.0,0.14608239]
[1732304430422,0.3608,99080.0,99069.0,0.15066123]
[1732304430614,0.3608,99080.0,99071.0,0.15066123]
[1732304431011,0.3608,99080.0,99070.0,0.15066123]
[1732304431422,0.50756,99080.0,99072.0,0.15066123]
[1732304431621,0.50756,99080.0,99071.0,0.1504214]
[1732304431918,0.50756,99080.0,99072.0,5.518e-05]
[1732304432115,0.50756,99080.0,99069.0,0.1504214]
[1732304432318,0.50756,99080.0,99072.0,0.1504214]
[1732304432519,0.50756,99080.0,99071.0,0.15111704]
[1732304432715,0.50756,99080.0,99070.0,0.15111704]
[1732304432924,0.50756,99080.0,99067.0,0.15111704]
[1732304433119,0.50756,99080.0,99071.0,0.15111704]
[1732304433312,0.3608,99080.0,99071.0,0.15111704]
[1732304433526,0.2916119,99080.0,99066.0,0.15203734]
[1732304433723,0.2916119,99080.0,99064.0,0.00151383]
[1732304433923,0.2916119,99080.0,99072.0,0.15203734]
[1732304434225,0.14676,99079.0,99064.0,0.00151383]
[1732304434730,0.14676,99078.0,99072.0,0.15169612]
[1732304435023,0.2916119,99080.0,99064.0,0.00151383]
[1732304435227,0.2916119,99080.0,99073.0,0.15169612]
[1732304435615,0.2916119,99080.0,99064.0,0.00151383]
[1732304435815,0.2916119,99080.0,99074.0,0.15226771]
[1732304436121,0.2916119,99080.0,99068.0,0.15226771]
[1732304436324,0.2916119,99080.0,99064.0,0.00151383]
[1732304436730,0.2916119,99080.0,99068.0,0.15175396]
[1732304436922,0.2916119,99080.0,99066.0,0.36132]
[1732304437122,0.2916119,99080.0,99066.0,0.3608]
[1732304437327,0.2916119,99080.0,99068.0,0.15175396]
[1732304437634,0.2916119,99080.0,99066.0,0.3608]
[1732304438026,0.2916119,99080.0,99067.0,0.15188063]
[1732304438222,0.3608,99081.0,99067.0,0.15188063]
[1732304438722,0.0399,99066.0,99000.0,0.1]
[1732304438924,0.3608,99014.0,99001.0,0.003]
[1732304439122,0.23494918,99023.0,99000.0,0.14608239]
[1732304439430,0.3608,99021.0,99002.0,0.15114767]
[1732304439729,0.3608,99021.0,99010.0,0.14608239]
[1732304439930,0.3608,99021.0,99017.0,0.02012624]
[1732304440131,0.3608,99034.0,99017.0,0.02012624]
[1732304440329,0.3608,99025.0,99018.0,0.15204506]
[1732304441136,0.3608,99025.0,99016.0,0.02012624]
[1732304441329,0.3608,99017.0,99016.0,0.02012624]
[1732304441530,0.3608,99017.0,99003.0,0.3974]
[1732304441827,0.3608,99017.0,99016.0,0.15083575]
[1732304442032,0.32073227,99017.0,99007.0,0.15083575]
[1732304442233,0.32073227,99017.0,99004.0,0.15083575]
[1732304442234,0.3608,99008.0,99005.0,0.15083575]
[1732304442537,0.3608,99008.0,99004.0,0.15185912]
[1732304442733,0.3608,99008.0,99006.0,0.15185912]
[1732304443131,0.3608,99008.0,99005.0,0.15185912]
[1732304443332,0.3608,99008.0,99007.0,0.15185912]
[1732304443636,0.3608,99008.0,99003.0,0.39792]
[1732304443929,0.3608,99008.0,99007.0,0.15153424]
[1732304444132,0.3608,99008.0,99007.0,0.17166048]
[1732304444433,0.3608,99008.0,99007.0,0.1723073]
[1732304445334,0.3608,99008.0,99007.0,0.15218106]
[1732304445529,0.9638,99008.0,98991.0,0.05154307]
[1732304445736,0.3608,98992.0,98976.0,0.1996]
[1732304446126,0.3608,98992.0,98982.0,0.15219221]
[1732304446436,0.3608,98984.0,98982.0,0.15209694]
[1732304447026,0.30308,98983.0,98962.0,0.00052]
[1732304447228,0.3608,98963.0,98943.0,0.00052]
[1732304447432,0.3608,98949.0,98943.0,0.04998123]
[1732304447731,0.3608,98949.0,98944.0,0.15131382]
[1732304448033,0.3608,98949.0,98938.0,0.15131382]
[1732304448429,0.3608,98949.0,98945.0,0.15131382]
[1732304448630,0.3608,98949.0,98938.0,0.1519868]